fUST/lending_fUST_20250422
["ID","MTS","AMOUNT","RATE_DAILY","PERIOD"]
[358628434,1745319057770,-380.0,0.00024658,2]
[358628435,1745319057780,-200.0,0.00024658,2]
[358628436,1745319057790,-500.0,0.00024658,2]
[358628437,1745319057801,-151.0,0.00024658,7]
[358628438,1745319057811,-274.86318937,0.00024658,2]
[358628439,1745319057822,-1520.58464235,0.00024659,5]
[358628440,1745319057832,-155.314413,0.000247,7]
[358628441,1745319057842,-2085.5225826,0.00024755,2]
[358628442,1745319057851,-200.0,0.000248,2]
[358628443,1745319057861,-200.0,0.000248,2]
[358628444,1745319057870,-151.0,0.000248,7]
[358628445,1745319057880,-79.53012132,0.000248,7]
[358628446,1745319058029,-71.46987868,0.000248,7]
[358628447,1745319058040,-311.21012132,0.000248,2]
[358628448,1745319058052,-940.72474768,0.000248,2]
[358628449,1745319058061,-279.21292627,0.000248,2]
[358628450,1745319058074,-972.72194273,0.000248,2]
[358628451,1745319058083,-185.462413,0.000248,2]
[358628452,1745319058093,-185.462413,0.000248,2]
[358628453,1745319058103,-151.0,0.000248,7]
[358628454,1745319058113,-118.57652239,0.000248,2]
[358628455,1745319058230,-2494.59495218,0.000248,2]
[358628456,1745319058242,-618.57236412,0.000248,2]
[358628457,1745319058287,-341.37228708,0.00022967,2]
[358628458,1745319058300,-61.62771292,0.00022967,2]
[358628459,1745319058310,-12988.93016514,0.000248,2]
[358628460,1745319058348,-316.30000002,0.000248,2]
[358628461,1745319058703,-75379.81635475,0.000248,2]
[358628462,1745319058713,-151.0,0.000248,7]
[358628463,1745319058723,-1219.710104,0.000248,2]
[358628464,1745319058733,-500.0,0.00024832,2]
[358628465,1745319058744,-223.0315306,0.00024853,2]
[358628466,1745319058754,-762.03309946,0.00024854,2]
[358628467,1745319058763,-762.03309946,0.00024869,2]
[358628468,1745319058773,-500.0,0.00024873,2]
[358628469,1745319058783,-500.0,0.00024873,2]
[358628470,1745319058793,-500.0,0.00024873,2]
[358628471,1745319058803,-500.0,0.00024873,2]
[358628472,1745319058812,-500.0,0.00024873,2]
[358628473,1745319058822,-500.0,0.00024873,2]
[358628474,1745319058832,-500.0,0.00024873,2]
[358628475,1745319058842,-500.0,0.00024873,2]
[358628476,1745319058852,-500.0,0.00024873,2]
[358628477,1745319058862,-160.3437291,0.00024873,2]
[358628478,1745319058872,-351.7733278,0.00024873,2]
[358628479,1745319058881,-500.0,0.00024873,2]
[358628480,1745319058891,-502.01648214,0.00024873,2]
[358628481,1745319058901,-500.0,0.00024873,2]
[358628482,1745319058910,-500.0,0.00024873,2]
[358628483,1745319058919,-160.38912403,0.00024873,2]
[358628484,1745319058929,-151.57226346,0.00024873,2]
[358628485,1745319058939,-160.74172657,0.00024873,2]
[358628486,1745319058948,-500.0,0.00024873,2]
[358628487,1745319058958,-500.0,0.00024873,2]
[358628488,1745319058968,-602.52634718,0.00024873,2]
[358628489,1745319058977,-500.0,0.00024873,2]
[358628490,1745319058987,-500.0,0.00024873,2]
[358628491,1745319058997,-500.0,0.00024873,2]
[358628492,1745319059006,-500.0,0.00024873,2]
[358628493,1745319059016,-616.77597092,0.00024873,2]
[358628494,1745319059025,-500.0,0.00024873,2]
[358628495,1745319059035,-502.60583245,0.00024873,2]
[358628496,1745319059045,-204.8823843,0.00024873,2]
[358628497,1745319059055,-500.0,0.00024873,2]
[358628498,1745319059064,-553.67689275,0.00024873,2]
[358628499,1745319059074,-501.99828974,0.00024873,2]
[358628500,1745319059083,-491.14846184,0.00024873,2]
[358628501,1745319059094,-500.0,0.00024873,2]
[358628502,1745319059104,-500.80456186,0.00024873,2]
[358628503,1745319059114,-500.0,0.00024873,2]
[358628504,1745319059124,-500.0,0.00024873,2]
[358628505,1745319059135,-500.0,0.00024873,2]
[358628506,1745319059144,-261.18303373,0.00024873,2]
[358628507,1745319059154,-500.0,0.00024873,2]
[358628508,1745319059164,-500.0,0.00024873,2]
[358628509,1745319059174,-500.0,0.00024873,2]
[358628510,1745319059188,-500.0,0.00024873,2]
[358628511,1745319059197,-500.0,0.00024873,2]
[358628512,1745319059207,-500.0,0.00024873,2]
[358628513,1745319059217,-500.55583882,0.00024873,2]
[358628514,1745319059229,-500.0,0.00024873,2]
[358628515,1745319059241,-500.0,0.00024873,2]
[358628516,1745319059250,-500.0,0.00024873,2]
[358628517,1745319059260,-500.53146477,0.00024873,2]
[358628518,1745319059270,-500.0,0.00024873,2]
[358628519,1745319059280,-500.0,0.00024873,2]
[358628520,1745319059290,-165.45359783,0.00024873,2]
[358628521,1745319059300,-500.0,0.00024873,2]
[358628522,1745319059310,-500.0,0.00024873,2]
[358628523,1745319059320,-500.0,0.00024873,2]
[358628524,1745319059330,-500.0,0.00024873,2]
[358628525,1745319059339,-500.0,0.00024873,2]
[358628526,1745319059349,-500.0,0.00024873,2]
[358628527,1745319059359,-436.61925767,0.00024873,2]
[358628528,1745319059369,-500.0,0.00024873,2]
[358628529,1745319059379,-500.0,0.00024873,2]
[358628530,1745319059388,-500.0,0.00024873,2]
[358628531,1745319059398,-571.01832216,0.00024873,2]
[358628532,1745319059408,-502.18331833,0.00024873,2]
[358628533,1745319059417,-500.0,0.00024873,2]
[358628534,1745319059427,-500.0,0.00024873,2]
[358628535,1745319059437,-151.0,0.00024873,7]
[358628536,1745319059447,-176.96218049,0.00024879,2]
[358628537,1745319059457,-151.0,0.00024879,2]
[358628538,1745319059466,-160.0,0.0002488,3]
[358628539,1745319059476,-29498.53882699,0.0002488,2]
[358628540,1745319059489,-1210.55707798,0.0002488,2]
[358628543,1745319469587,-214.8797772,0.00021556,2]
[358628544,1745319469610,-159.97773,0.00021716,2]
[358628545,1745319469637,-246.46866833,0.00021816,2]
[358628546,1745319469663,-187.12855408,0.00021816,2]
[358628547,1745319469695,-433.9506484,0.00021816,2]
[358628548,1745319469719,-1200.0,0.00021816,2]
[358628549,1745319469743,-300.0,0.00021816,2]
[358628550,1745319469768,-3257.59462199,0.00021817,2]
[358628551,1745319475142,264229.56680364,0.0002001,2]
[358628621,1745319648784,208.19229443,6.8e-07,2]
[358628632,1745319990367,162.22171093,0.000189,2]
[358628707,1745320231751,-317.78000001,0.00020781,2]
[358628708,1745320231802,-1927.21999999,0.00020781,2]
[358628709,1745320231812,-257.75055561,0.00021633,2]
[358628710,1745320231822,-300.0,0.00021816,2]
[358628711,1745320231833,-1322.55512403,0.00021817,2]
[358628774,1745320238121,-365419.85025398,0.00021817,2]
[358628776,1745320238131,-500.0,0.00021917,2]
[358628778,1745320238142,-500.0,0.00021917,2]
[358628780,1745320238153,-500.0,0.00021917,2]
[358628783,1745320238164,-436.69385746,0.00021917,2]
[358628785,1745320238175,-500.0,0.00021917,2]
[358628787,1745320238186,-500.0,0.00021917,2]
[358628789,1745320238196,-500.0,0.00021917,2]
[358628791,1745320238205,-500.0,0.00021917,2]
[358628793,1745320238215,-468.13857408,0.00021917,2]
[358628795,1745320238225,-500.0,0.00021917,2]
[358628797,1745320238235,-696.94,0.00021917,2]
[358628799,1745320238245,-500.0,0.00021917,2]
[358628801,1745320238255,-160.0,0.00021917,2]
[358628803,1745320238265,-500.0,0.00021917,2]
[358628805,1745320238274,-500.0,0.00021917,2]
[358628807,1745320238284,-500.0,0.00021917,2]
[358628809,1745320238293,-500.0,0.00021917,2]
[358628811,1745320238303,-500.0,0.00021917,2]
[358628813,1745320238314,-500.0,0.00021917,2]
[358628815,1745320238324,-743.52,0.00021917,2]
[358628817,1745320238334,-500.0,0.00021917,2]
[358628819,1745320238345,-500.0,0.00021917,2]
[358628821,1745320238355,-500.0,0.00021917,2]
[358628823,1745320238366,-500.0,0.00021917,2]
[358628825,1745320238376,-500.0,0.00021917,2]
[358628827,1745320238388,-662.12,0.00021917,2]
[358628829,1745320238397,-500.0,0.00021917,2]
[358628831,1745320238407,-500.0,0.00021917,2]
[358628833,1745320238416,-500.0,0.00021917,2]
[358628835,1745320238426,-500.0,0.00021917,2]
[358628838,1745320238436,-500.0,0.00021917,2]
[358628840,1745320238446,-500.0,0.00021917,2]
[358628842,1745320238456,-500.0,0.00021917,2]
[358628844,1745320238467,-531.07,0.00021917,2]
[358628846,1745320238476,-500.0,0.00021917,2]
[358628848,1745320238486,-500.0,0.00021917,2]
[358628850,1745320238496,-608.2,0.00021917,2]
[358628852,1745320238506,-500.0,0.00021917,2]
[358628854,1745320238515,-500.0,0.00021917,2]
[358628870,1745320238677,-500.0,0.00021917,2]
[358628872,1745320238689,-777.38,0.00021917,2]
[358628874,1745320238699,-505.1590037,0.00021917,2]
[358628876,1745320238709,-500.0,0.00021917,2]
[358628878,1745320238719,-500.0,0.00021917,2]
[358628880,1745320238729,-500.0,0.00021917,2]
[358628882,1745320238739,-500.0,0.00021917,2]
[358628884,1745320238749,-500.0,0.00021917,2]
[358628886,1745320238759,-500.0,0.00021917,2]
[358628888,1745320238771,-500.0,0.00021917,2]
[358628890,1745320238781,-500.0,0.00021917,2]
[358628892,1745320238793,-500.0,0.00021917,2]
[358628894,1745320238804,-500.0,0.00021917,2]
[358628896,1745320238813,-500.0,0.00021917,2]
[358628898,1745320238823,-500.0,0.00021917,2]
[358628900,1745320238833,-500.0,0.00021917,2]
[358628902,1745320238842,-500.0,0.00021917,2]
[358628904,1745320238852,-500.0,0.00021917,2]
[358628906,1745320238861,-500.0,0.00021917,2]
[358628908,1745320238871,-500.0,0.00021917,2]
[358628910,1745320238881,-738.84,0.00021917,2]
[358628912,1745320238892,-500.0,0.00021917,2]
[358628913,1745320238902,-500.0,0.00021917,2]
[358628914,1745320238911,-500.0,0.00021917,2]
[358628915,1745320238920,-500.0,0.00021917,2]
[358628916,1745320238929,-500.0,0.00021917,2]
[358628917,1745320238939,-504.24568967,0.00021917,2]
[358628918,1745320238948,-500.0,0.00021917,2]
[358628919,1745320238958,-513.88346608,0.00021917,2]
[358628920,1745320238968,-599.28146797,0.00021917,2]
[358628921,1745320238978,-500.0,0.00021917,2]
[358628922,1745320238987,-500.0,0.00021917,2]
[358628923,1745320238997,-500.0,0.00021917,2]
[358628924,1745320239007,-200.95080609,0.00021917,2]
[358628925,1745320239018,-500.0,0.00021917,2]
[358628927,1745320239027,-216.4177862,0.00021917,2]
[358628929,1745320239036,-500.0,0.00021917,2]
[358628931,1745320239045,-500.0,0.00021917,2]
[358628933,1745320239055,-501.62931202,0.00021917,2]
[358628935,1745320239065,-544.52755976,0.00021917,2]
[358628937,1745320239075,-506.34277989,0.00021917,2]
[358628939,1745320239086,-500.0,0.00021917,2]
[358628941,1745320239096,-500.0,0.00021917,2]
[358628943,1745320239105,-504.19987783,0.00021917,2]
[358628945,1745320239115,-500.0,0.00021917,2]
[358628947,1745320239125,-500.0,0.00021917,2]
[358628949,1745320239135,-500.0,0.00021917,2]
[358628951,1745320239144,-500.0,0.00021917,2]
[358628953,1745320239154,-500.0,0.00021917,2]
[358628955,1745320239164,-500.0,0.00021917,2]
[358628957,1745320239174,-611.20503812,0.00021917,2]
[358628959,1745320239183,-510.26611094,0.00021917,2]
[358628961,1745320239193,-500.0,0.00021917,2]
[358628963,1745320239204,-500.0,0.00021917,2]
[358628965,1745320239214,-500.0,0.00021917,2]
[358628967,1745320239223,-503.59119997,0.00021917,2]
[358628969,1745320239232,-500.0,0.00021917,2]
[358628971,1745320239242,-502.79384369,0.00021917,2]
[358628972,1745320239252,-500.0,0.00021917,2]
[358628975,1745320239262,-500.0,0.00021917,2]
[358628977,1745320239272,-500.0,0.00021917,2]
[358628979,1745320239281,-500.0,0.00021917,2]
[358628981,1745320239291,-215.15714189,0.00021917,2]
[358628983,1745320239300,-530.4393112,0.00021917,2]
[358628985,1745320239310,-500.0,0.00021917,2]
[358628987,1745320239319,-500.0,0.00021917,2]
[358628989,1745320239328,-500.0,0.00021917,2]
[358628991,1745320239337,-500.0,0.00021917,2]
[358628993,1745320239347,-462.06803139,0.00021917,2]
[358628995,1745320239356,-500.0,0.00021917,2]
[358628997,1745320239365,-500.0,0.00021917,2]
[358628999,1745320239375,-500.0,0.00021917,2]
[358629001,1745320239384,-500.0,0.00021917,2]
[358629003,1745320239393,-500.0,0.00021917,2]
[358629005,1745320239403,-500.0,0.00021917,2]
[358629007,1745320239412,-500.0,0.00021917,2]
[358629009,1745320239421,-500.0,0.00021917,2]
[358629011,1745320239430,-500.32266971,0.00021917,2]
[358629013,1745320239439,-714.48,0.00021917,2]
[358629015,1745320239448,-1155.95,0.00021917,2]
[358629017,1745320239458,-500.0,0.00021917,2]
[358629019,1745320239468,-500.0,0.00021917,2]
[358629021,1745320239477,-500.0,0.00021917,2]
[358629023,1745320239487,-500.0,0.00021917,2]
[358629025,1745320239497,-500.0,0.00021917,2]
[358629027,1745320239507,-500.0,0.00021917,2]
[358629029,1745320239517,-500.0,0.00021917,2]
[358629031,1745320239526,-500.0,0.00021917,2]
[358629033,1745320239537,-500.0,0.00021917,2]
[358629034,1745320239546,-500.0,0.00021917,2]
[358629036,1745320239560,-500.0,0.00021917,2]
[358629038,1745320239570,-500.0,0.00021917,2]
[358629040,1745320239580,-500.0,0.00021917,2]
[358629042,1745320239590,-500.0,0.00021917,2]
[358629043,1745320239600,-500.0,0.00021917,2]
[358629044,1745320239610,-500.0,0.00021917,2]
[358629045,1745320239619,-500.0,0.00021917,2]
[358629046,1745320239628,-500.0,0.00021917,2]
[358629047,1745320239638,-500.0,0.00021917,2]
[358629048,1745320239648,-500.0,0.00021917,2]
[358629049,1745320239657,-500.0,0.00021917,2]
[358629050,1745320239667,-673.16,0.00021917,2]
[358629051,1745320239676,-500.0,0.00021917,2]
[358629052,1745320239685,-601.61337324,0.00021917,2]
[358629053,1745320239695,-500.82449963,0.00021917,2]
[358629054,1745320239704,-500.0,0.00021917,2]
[358629055,1745320239713,-500.0,0.00021917,2]
[358629056,1745320239722,-501.60188421,0.00021917,2]
[358629057,1745320239732,-501.41201005,0.00021917,2]
[358629058,1745320239741,-500.0,0.00021917,2]
[358629059,1745320239750,-500.0,0.00021917,2]
[358629060,1745320239759,-500.0,0.00021917,2]
[358629061,1745320239769,-500.0,0.00021917,2]
[358629062,1745320239779,-634.74074739,0.00021917,2]
[358629063,1745320239789,-500.0,0.00021917,2]
[358629064,1745320239799,-500.0,0.00021917,2]
[358629065,1745320239808,-500.0,0.00021917,2]
[358629066,1745320239817,-500.0,0.00021917,2]
[358629067,1745320239826,-500.0,0.00021917,2]
[358629068,1745320239835,-500.0,0.00021917,2]
[358629069,1745320239845,-500.0,0.00021917,2]
[358629070,1745320239854,-500.0,0.00021917,2]
[358629071,1745320239863,-500.0,0.00021917,2]
[358629072,1745320239872,-500.0,0.00021917,2]
[358629073,1745320239882,-500.0,0.00021917,2]
[358629074,1745320239891,-500.0,0.00021917,2]
[358629075,1745320239901,-1645.3,0.00021917,2]
[358629076,1745320239910,-503.43826357,0.00021917,2]
[358629077,1745320239919,-500.0,0.00021917,2]
[358629078,1745320239929,-503.55488466,0.00021917,2]
[358629079,1745320239938,-504.28978164,0.00021917,2]
[358629080,1745320239948,-500.0,0.00021917,2]
[358629081,1745320239957,-500.0,0.00021917,2]
[358629082,1745320239967,-500.0,0.00021917,2]
[358629083,1745320239977,-621.47,0.00021917,2]
[358629084,1745320239986,-500.0,0.00021917,2]
[358629085,1745320239996,-504.73077783,0.00021917,2]
[358629086,1745320240005,-500.0,0.00021917,2]
[358629087,1745320240015,-500.0,0.00021917,2]
[358629088,1745320240024,-500.0,0.00021917,2]
[358629089,1745320240034,-500.0,0.00021917,2]
[358629090,1745320240044,-500.0,0.00021917,2]
[358629091,1745320240055,-500.0,0.00021917,2]
[358629092,1745320240067,-3373.02,0.00021917,2]
[358629093,1745320240077,-500.0,0.00021917,2]
[358629094,1745320240088,-500.0,0.00021917,2]
[358629095,1745320240097,-508.78431858,0.00021917,2]
[358629096,1745320240107,-500.0,0.00021917,2]
[358629097,1745320240117,-500.0,0.00021917,2]
[358629098,1745320240127,-500.0,0.00021917,2]
[358629099,1745320240136,-518.89403622,0.00021917,2]
[358629100,1745320240146,-500.0,0.00021917,2]
[358629101,1745320240156,-502.01,0.00021917,2]
[358629102,1745320240167,-500.0,0.00021917,2]
[358629103,1745320240177,-500.7371822,0.00021917,2]
[358629104,1745320240186,-500.0,0.00021917,2]
[358629106,1745320240197,-500.0,0.00021917,2]
[358629108,1745320240207,-500.0,0.00021917,2]
[358629110,1745320240217,-500.0,0.00021917,2]
[358629112,1745320240226,-500.0,0.00021917,2]
[358629114,1745320240235,-500.0,0.00021917,2]
[358629116,1745320240245,-500.0,0.00021917,2]
[358629118,1745320240255,-500.0,0.00021917,2]
[358629120,1745320240264,-500.0,0.00021917,2]
[358629122,1745320240274,-500.0,0.00021917,2]
[358629123,1745320240283,-500.0,0.00021917,2]
[358629125,1745320240294,-633.84795498,0.00021917,2]
[358629127,1745320240304,-3520.95,0.00021917,2]
[358629129,1745320240314,-500.0,0.00021917,2]
[358629130,1745320240324,-500.0,0.00021917,2]
[358629131,1745320240334,-503.35884048,0.00021917,2]
[358629132,1745320240344,-505.02602121,0.00021917,2]
[358629133,1745320240354,-500.0,0.00021917,2]
[358629134,1745320240364,-500.0,0.00021917,2]
[358629135,1745320240374,-501.2563291,0.00021917,2]
[358629136,1745320240384,-502.31373735,0.00021917,2]
[358629137,1745320240395,-500.0,0.00021917,2]
[358629138,1745320240406,-500.0,0.00021917,2]
[358629139,1745320240416,-500.0,0.00021917,2]
[358629140,1745320240426,-501.65125686,0.00021917,2]
[358629141,1745320240436,-500.0,0.00021917,2]
[358629142,1745320240446,-500.0,0.00021917,2]
[358629143,1745320240456,-500.0,0.00021917,2]
[358629144,1745320240467,-500.0,0.00021917,2]
[358629145,1745320240476,-505.54069586,0.00021917,2]
[358629146,1745320240486,-641.02,0.00021917,2]
[358629147,1745320240495,-500.0,0.00021917,2]
[358629148,1745320240505,-510.91112369,0.00021917,2]
[358629149,1745320240516,-500.0,0.00021917,2]
[358629150,1745320240525,-500.0,0.00021917,2]
[358629151,1745320240535,-505.22127712,0.00021917,2]
[358629152,1745320240546,-500.0,0.00021917,2]
[358629153,1745320240557,-372.76242901,0.00021917,2]
[358629154,1745320240570,-500.0,0.00021917,2]
[358629155,1745320240580,-503.47947882,0.00021917,2]
[358629156,1745320240591,-539.74,0.00021917,2]
[358629157,1745320240601,-502.64797256,0.00021917,2]
[358629158,1745320240611,-503.79091632,0.00021917,2]
[358629159,1745320240621,-500.0,0.00021917,2]
[358629160,1745320240631,-500.0,0.00021917,2]
[358629161,1745320240641,-500.0,0.00021917,2]
[358629162,1745320240650,-11275.1,0.00021917,2]
[358629163,1745320240660,-647.52603563,0.00021917,2]
[358629164,1745320240670,-500.0,0.00021917,2]
[358629165,1745320240679,-500.0,0.00021917,2]
[358629166,1745320240689,-502.67088859,0.00021917,2]
[358629167,1745320240698,-677.42,0.00021917,2]
[358629168,1745320240708,-556.00305879,0.00021917,2]
[358629169,1745320240717,-500.0,0.00021917,2]
[358629170,1745320240726,-759.51,0.00021917,2]
[358629171,1745320240737,-500.0,0.00021917,2]
[358629172,1745320240746,-503.02696017,0.00021917,2]
[358629173,1745320240755,-501.77784407,0.00021917,2]
[358629174,1745320240765,-500.0,0.00021917,2]
[358629175,1745320240774,-521.5793043,0.00021917,2]
[358629176,1745320240784,-502.36041253,0.00021917,2]
[358629177,1745320240793,-500.0,0.00021917,2]
[358629178,1745320240803,-501.63691401,0.00021917,2]
[358629179,1745320240812,-506.27016928,0.00021917,2]
[358629180,1745320240821,-500.0,0.00021917,2]
[358629182,1745320240831,-500.0,0.00021917,2]
[358629183,1745320240841,-500.0,0.00021917,2]
[358629185,1745320240851,-500.0,0.00021917,2]
[358629186,1745320240860,-500.0,0.00021917,2]
[358629187,1745320240870,-500.0,0.00021917,2]
[358629189,1745320240880,-501.51697049,0.00021917,2]
[358629190,1745320240889,-505.91198158,0.00021917,2]
[358629191,1745320240899,-503.07774411,0.00021917,2]
[358629192,1745320240908,-500.0,0.00021917,2]
[358629193,1745320240917,-500.0,0.00021917,2]
[358629194,1745320240927,-502.30571358,0.00021917,2]
[358629196,1745320240937,-500.0,0.00021917,2]
[358629197,1745320240946,-500.0,0.00021917,2]
[358629199,1745320240958,-500.0,0.00021917,2]
[358629200,1745320240968,-500.0,0.00021917,2]
[358629202,1745320240978,-500.0,0.00021917,2]
[358629203,1745320240989,-501.06957214,0.00021917,2]
[358629204,1745320240998,-500.0,0.00021917,2]
[358629205,1745320241008,-500.0,0.00021917,2]
[358629206,1745320241019,-500.0,0.00021917,2]
[358629207,1745320241029,-504.19409519,0.00021917,2]
[358629208,1745320241038,-500.0,0.00021917,2]
[358629209,1745320241048,-500.0,0.00021917,2]
[358629210,1745320241058,-500.0,0.00021917,2]
[358629211,1745320241067,-500.0,0.00021917,2]
[358629212,1745320241077,-500.0,0.00021917,2]
[358629213,1745320241087,-500.0,0.00021917,2]
[358629214,1745320241097,-500.0,0.00021917,2]
[358629215,1745320241107,-500.0,0.00021917,2]
[358629216,1745320241116,-500.0,0.00021917,2]
[358629217,1745320241125,-500.0,0.00021917,2]
[358629218,1745320241135,-500.0,0.00021917,2]
[358629219,1745320241145,-504.54844696,0.00021917,2]
[358629220,1745320241155,-500.0,0.00021917,2]
[358629221,1745320241164,-500.0,0.00021917,2]
[358629222,1745320241174,-500.0,0.00021917,2]
[358629223,1745320241183,-500.0,0.00021917,2]
[358629224,1745320241194,-500.0,0.00021917,2]
[358629225,1745320241203,-500.0,0.00021917,2]
[358629226,1745320241213,-500.0,0.00021917,2]
[358629227,1745320241223,-500.0,0.00021917,2]
[358629228,1745320241232,-501.65465623,0.00021917,2]
[358629229,1745320241242,-504.2932051,0.00021917,2]
[358629230,1745320241251,-500.0,0.00021917,2]
[358629231,1745320241261,-500.0,0.00021917,2]
[358629232,1745320241270,-500.0,0.00021917,2]
[358629233,1745320241279,-629.66162781,0.00021917,2]
[358629234,1745320241289,-500.0,0.00021917,2]
[358629235,1745320241298,-500.0,0.00021917,2]
[358629236,1745320241307,-500.0,0.00021917,2]
[358629237,1745320241317,-500.0,0.00021917,2]
[358629238,1745320241327,-500.0,0.00021917,2]
[358629239,1745320241336,-500.0,0.00021917,2]
[358629240,1745320241346,-500.0,0.00021917,2]
[358629241,1745320241355,-500.0,0.00021917,2]
[358629242,1745320241365,-501.31299266,0.00021917,2]
[358629243,1745320241374,-515.05,0.00021917,2]
[358629244,1745320241384,-500.0,0.00021917,2]
[358629245,1745320241393,-361.72854456,0.00021917,2]
[358629246,1745320241402,-500.0,0.00021917,2]
[358629247,1745320241412,-500.0,0.00021917,2]
[358629248,1745320241421,-500.0,0.00021917,2]
[358629249,1745320241431,-1819.9,0.00021917,2]
[358629250,1745320241440,-500.0,0.00021917,2]
[358629251,1745320241449,-500.0,0.00021917,2]
[358629252,1745320241458,-500.0,0.00021917,2]
[358629253,1745320241468,-534.33,0.00021917,2]
[358629254,1745320241477,-500.0,0.00021917,2]
[358629255,1745320241487,-3290.51,0.00021917,2]
[358629256,1745320241496,-500.0,0.00021917,2]
[358629257,1745320241507,-635.6,0.00021917,2]
[358629258,1745320241517,-500.0,0.00021917,2]
[358629259,1745320241526,-500.0,0.00021917,2]
[358629260,1745320241536,-500.0,0.00021917,2]
[358629261,1745320241545,-500.0,0.00021917,2]
[358629262,1745320241556,-500.0,0.00021917,2]
[358629263,1745320241567,-500.0,0.00021917,2]
[358629264,1745320241577,-500.0,0.00021917,2]
[358629265,1745320241586,-500.0,0.00021917,2]
[358629266,1745320241596,-500.0,0.00021917,2]
[358629267,1745320241606,-500.0,0.00021917,2]
[358629268,1745320241616,-500.0,0.00021917,2]
[358629269,1745320241625,-6254.96,0.00021917,2]
[358629270,1745320241635,-500.0,0.00021917,2]
[358629271,1745320241645,-500.89204275,0.00021917,2]
[358629272,1745320241654,-500.0,0.00021917,2]
[358629273,1745320241663,-563.65,0.00021917,2]
[358629274,1745320241673,-500.0,0.00021917,2]
[358629275,1745320241833,-500.0,0.00021917,2]
[358629276,1745320241844,-500.0,0.00021917,2]
[358629277,1745320241854,-500.0,0.00021917,2]
[358629278,1745320241863,-501.93523203,0.00021917,2]
[358629279,1745320241873,-500.0,0.00021917,2]
[358629280,1745320241882,-500.0,0.00021917,2]
[358629281,1745320241892,-500.0,0.00021917,2]
[358629282,1745320241902,-500.0,0.00021917,2]
[358629283,1745320241912,-500.0,0.00021917,2]
[358629284,1745320241921,-500.0,0.00021917,2]
[358629285,1745320241930,-500.0,0.00021917,2]
[358629286,1745320241940,-707.61,0.00021917,2]
[358629287,1745320241951,-500.0,0.00021917,2]
[358629288,1745320241961,-500.0,0.00021917,2]
[358629289,1745320241970,-500.0,0.00021917,2]
[358629290,1745320241980,-500.0,0.00021917,2]
[358629291,1745320241990,-516.09209659,0.00021917,2]
[358629292,1745320241999,-500.0,0.00021917,2]
[358629293,1745320242008,-500.0,0.00021917,2]
[358629294,1745320242018,-513.56409681,0.00021917,2]
[358629295,1745320242027,-500.0,0.00021917,2]
[358629296,1745320242037,-500.0,0.00021917,2]
[358629297,1745320242047,-500.0,0.00021917,2]
[358629298,1745320242056,-651.76,0.00021917,2]
[358629299,1745320242066,-500.0,0.00021917,2]
[358629300,1745320242075,-500.47103987,0.00021917,2]
[358629301,1745320242085,-500.0,0.00021917,2]
[358629302,1745320242094,-500.0,0.00021917,2]
[358629303,1745320242104,-500.0,0.00021917,2]